Cogmind - Beta 13 @@@ ROGUE MODE // 2024.04.18 @ 18:13:19 Player: adenochrome Result: Self-destructed Performance ------------- Evolutions (1) 500 Regions Visited (3) 600 Robots Destroyed (14) 70 Value Destroyed (321) 321 Prototype IDs (0) 0 Alien Tech Used (0) 0 Bonus (0) 0 TOTAL SCORE: 1491 Bonus ------- None Cogmind --------- Core Integrity 74/400 Matter 214/300 Energy 99/100 System Corruption 0% Temperature Cool (0) Movement Core (50) Location -9/Materials Parts ------- > --- POWER (1) -------- (None) > --- PROPULSION (3) --- (None) > --- UTILITY (2) ------ (None) > --- WEAPON (3) ------- (None) > --- INVENTORY (5) ---- Ion Engine Large Storage Unit EM Pulse Gun Peak State ------------ > --- POWER ------------ Ion Engine > --- PROPULSION ------- Aluminum Leg Aluminum Leg > --- UTILITY ---------- Medium Storage Unit Sensor Array > --- WEAPON ----------- Assault Rifle Assault Rifle > --- INVENTORY -------- Ion Engine Ion Engine Light Treads Light Treads Aluminum Leg Small Storage Unit Huge Storage Unit EM Pulse Gun Particle Gun [Rating: 8] Favorites ----------- Power Ion Engine Engine Ion Engine Propulsion Aluminum Leg Treads Light Treads Leg Aluminum Leg Utility Medium Storage Unit Device Sensor Array Storage Medium Storage Unit Weapon Assault Rifle Energy Gun Particle Gun Ballistic Gun Assault Rifle Build | -11 -10 -10 -9 ------- Run | Yrd Mat Min Mat Slots Evolved 2 | . . . 2 Power . | . . . . Propulsion 1 | . . . 1 Utility . | . . . . Weapon 1 | . . . 1 Parts Attached 20 | 6 4 3 7 Power 2 | 1 . . 1 Engine 2 | 1 . . 1 Core . | . . . . Reactor . | . . . . Propulsion 6 | 2 1 1 2 Treads 2 | . . . 2 Leg 4 | 2 1 1 . Wheel . | . . . . Hover . | . . . . Flight . | . . . . Utility 5 | 1 2 . 2 Device 1 | . 1 . . Storage 4 | 1 1 . 2 Processor . | . . . . Hackware . | . . . . Protection . | . . . . Artifact . | . . . . Weapon 7 | 2 1 2 2 Energy Gun 1 | . 1 . . Energy Cannon . | . . . . Ballistic Gun 6 | 2 . 2 2 Ballistic Cannon . | . . . . Launcher . | . . . . Special Weapon . | . . . . Impact Weapon . | . . . . Slashing Weapon . | . . . . Piercing Weapon . | . . . . Special Melee Weapon . | . . . . Unidentified Prototypes . | . . . . Parts Lost 14 | . 4 1 9 Power 2 | . . . 2 Propulsion 6 | . 2 1 3 Utility 1 | . 1 . . Weapon 5 | . 1 . 4 Highest Loss Streak 7 | . 2 1 7 To Critical Strikes . | . . . . Average Slot Usage (%) 85 | . 94 83 59 Engine 12 | . 14 14 7 Treads 3 | . . . 16 Leg 22 | . 27 26 7 Device 6 | . 9 . . Storage 12 | . 13 14 9 Energy Gun 2 | . 2 9 . Ballistic Gun 22 | . 25 18 18 Naked Turns 19 | . . . 19 Heaviest Build 30 | 14 20 20 30 Greatest Support 40 | 20 20 20 40 Greatest Overweight (x) 6 | 3 1 1 6 Average Overweight (x) . | . . . . Largest Inventory Capacity 25 | 8 10 10 25 Average Capacity 10 | 7 9 10 13 Most Carried 10 | 4 9 10 8 Average Carried 6 | 2 6 8 4 Final Capacity 10 | 8 10 10 5 Final Carried 9 | 4 9 9 3 Class Distribution -------------------- 93% | Mutant 6% | Gunner Dominant Class ---------------- Mutant | -10/Materials Mutant | -10/Mines Mutant | -9/Materials Resources | -11 -10 -10 -9 ----------- Run | Yrd Mat Min Mat Matter Collected 545 | 217 221 21 86 Remotely . | . . . . Salvage Created 406 | . 317 21 68 Parts 27 | . 15 5 7 Haulers Intercepted . | . . . . Recyclers Shooed . | . . . . Parts Field Recycled . | . . . . Retrieved Matter . | . . . . Parts Self-Destructed . | . . . . Prevented . | . . . . Kills | -11 -10 -10 -9 ------- Run | Yrd Mat Min Mat Combat Hostiles Destroyed 14 | . 9 2 3 Guns 14 | . 9 2 3 Classes Destroyed 2 | . 2 . . Swarmer 7 | . 3 2 2 Grunt 7 | . 6 . 1 Best Kill Streak 3 | . 3 2 2 Combat Bots Only 3 | . 3 2 2 Max Kills in Single Turn 2 | . 1 2 1 Gunslinging 1 | . . 1 . Exploded . | . . . . Melee . | . . . . Uniques/NPCs Destroyed . | . . . . Combat | -11 -10 -10 -9 -------- Run | Yrd Mat Min Mat Hostile Shots Fired 284 | . 86 13 185 Missed 94 | . 25 2 67 Damage Taken 1875 | . 624 122 1129 Core 460 | . 93 41 326 Absorbed by Shields . | . . . . Core Remaining (%) 73 | 100 . 46 . Volleys Fired 61 | . 45 3 13 Largest 3 | . 2 2 3 Hottest 85 | . 40 85 60 Shots Fired 116 | . 88 6 22 Gun 116 | . 88 6 22 Cannon . | . . . . Launcher . | . . . . Special . | . . . . Kinetic 113 | . 88 3 22 Thermal 3 | . . 3 . Explosive . | . . . . Electromagnetic . | . . . . Robot Hit Streak 7 | . 7 2 5 Robot Miss Streak 5 | . 5 3 2 Penetration Max . | . . . . Secondary Targets 4 | . 2 1 1 Max Gunslinging Chain 1 | . 1 1 1 Shots Hit Robots 62 | . 47 3 12 Core Hits 26 | . 17 2 7 Critical Kills 1 | . . . 1 Critical Parts Destroyed . | . . . . Critical Strikes 1 | . . . 1 Destroy 1 | . . . 1 Melee Attacks . | . . . . Impact . | . . . . Slashing . | . . . . Piercing . | . . . . Sneak Attacks . | . . . . Combat Hostiles . | . . . . Follow-up Attacks . | . . . . Damage Inflicted 802 | . 602 70 130 Guns 792 | . 593 70 129 Cannons . | . . . . Explosions . | . . . . Melee . | . . . . Ramming 10 | . 9 . 1 Kinetic 745 | . 593 23 129 Thermal 47 | . . 47 . Explosive . | . . . . Electromagnetic . | . . . . Impact . | . . . . Slashing . | . . . . Piercing . | . . . . Highest Corruption . | . . . . Average Corruption . | . . . . Corruption Purged . | . . . . Corruption Blocked . | . . . . Overload Shots . | . . . . Overflow Damage . | . . . . Projectiles . | . . . . Explosions . | . . . . Melee . | . . . . Knockbacks . | . . . . Impact . | . . . . Kinetic . | . . . . Secondary . | . . . . Self-Inflicted Damage . | . . . . Shots . | . . . . Rammed 1 | . . . 1 Targets Rammed 3 | . 2 . 1 Kicked 2 | . 2 . . Crushed . | . . . . Highest Temperature 72 | . 5 72 19 Average Temperature 22 | . 2 35 8 Received Heat Transfer 596 | . 252 20 324 Siege Activations . | . . . . Robots Corrupted . | . . . . Combat Hostiles . | . . . . Parts Fried . | . . . . Impact Corruptions . | . . . . Robots Melted . | . . . . Combat Hostiles . | . . . . Parts Melted . | . . . . Heat Transferred 111 | . . 111 . Parts Sabotaged . | . . . . Parts Stolen . | . . . . Parts Stripped . | . . . . Power Chain Reactions . | . . . . Alert | -11 -10 -10 -9 ------- Run | Yrd Mat Min Mat Peak Influence 220 | . 220 68 32 Initial 22 | . . 3 22 Average 40 | . 55 31 18 Maximum Alert Level 1 | . 1 . . Low Security (%) 95 | 100 92 100 100 Level 1 4 | . 7 . . Level 2 . | . . . . Level 3 . | . . . . Level 4 . | . . . . Level 5 . | . . . . High Security . | . . . . Max Security . | . . . . Squads Dispatched 3 | . 3 . . Investigation . | . . . . Extermination . | . . . . Reinforcement 3 | . 3 . . Assault . | . . . . Garrison . | . . . . Intercept . | . . . . Searches Triggered . | . . . . Construction Impeded . | . . . . Haulers Reinforced . | . . . . Active Scanning Responses . | . . . . Cargo Convoy Interrupts . | . . . . Stealth | -11 -10 -10 -9 --------- Run | Yrd Mat Min Mat Distress Signals 2 | . 2 . . Communications Jammed . | . . . . Distress Signals . | . . . . Times Spotted 49 | . 17 16 16 Peak Tracking Total 17 | . 3 17 9 Tactical Retreats 2 | . 1 1 . Traps | -11 -10 -10 -9 ------- Run | Yrd Mat Min Mat Traps Triggered . | . . . . Indirectly . | . . . . Trap Hack Attempts . | . . . . Triggered . | . . . . Disarmed . | . . . . Reprogrammed . | . . . . Reused . | . . . . Traps Extracted . | . . . . Installed . | . . . . Triggered . | . . . . Machines | -11 -10 -10 -9 ---------- Run | Yrd Mat Min Mat Machines Disabled . | . . . . Max in Single Turn . | . . . . Machines Repaired . | . . . . Machines Dismantled . | . . . . Machines Sabotaged . | . . . . Overloaded Fab Kills . | . . . . Hacking | -11 -10 -10 -9 --------- Run | Yrd Mat Min Mat Machines Accessed 3 | . 3 . . Terminals 2 | . 2 . . Fabricators . | . . . . Repair Stations . | . . . . Recycling Units 1 | . 1 . . Scanalyzers . | . . . . Garrison Access . | . . . . Total Hacks 6 | . 6 . . Successful 3 | . 3 . . Failed 3 | . 3 . . Catastrophic 1 | . 1 . . Database Lockouts . | . . . . Manual . | . . . . Terminals 4 | . 4 . . Fabricators . | . . . . Repair Stations . | . . . . Recycling Units 2 | . 2 . . Scanalyzers . | . . . . Garrison Access . | . . . . Terminal Hacks 1 | . 1 . . Alert Level 1 | . 1 . . Fabricator Hacks . | . . . . Repair Station Hacks . | . . . . Recycling Unit Hacks 2 | . 2 . . Report Inventory 1 | . 1 . . Retrieve Matter 1 | . 1 . . Scanalyzer . | . . . . Garrison Access Hacks . | . . . . Unauthorized Hacks . | . . . . Terminals . | . . . . Fabricators . | . . . . Repair Stations . | . . . . Recycling Units . | . . . . Scanalyzers . | . . . . Garrison Access . | . . . . Data Cores Recovered . | . . . . Used . | . . . . Hacking Detections 2 | . 2 . . Full Trace Events . | . . . . Feedback Events . | . . . . Feedback Blocked . | . . . . Robot Schematics Acquired . | . . . . Robots Built . | . . . . Authchips . | . . . . Time . | . . . . Total Robot Build Rating . | . . . . Part Schematics Acquired . | . . . . Parts Built . | . . . . Authchips . | . . . . Time . | . . . . Total Part Build Rating . | . . . . Parts Repaired . | . . . . Time . | . . . . Parts Recycled . | . . . . Recycled Matter . | . . . . Retrieved Matter . | . . . . Retrieved Components . | . . . . Parts Scanalyzed . | . . . . Part Schematics Acquired . | . . . . Parts Damaged . | . . . . Bothacking | -11 -10 -10 -9 ------------ Run | Yrd Mat Min Mat Used RIF Installer . | . . . . Robots Hacked . | . . . . Non-combat . | . . . . Combat . | . . . . Robot Hacks Applied . | . . . . Relay Couplers Released . | . . . . Fabnet Peak Effective % . | . . . . Robots Rewired . | . . . . Allies Hacked . | . . . . Hacks Repelled . | . . . . Allies | -11 -10 -10 -9 -------- Run | Yrd Mat Min Mat Total Allies . | . . . . Largest Group . | . . . . Highest-Rated Group . | . . . . Highest-Rated Ally . | . . . . Total Orders . | . . . . Ally Attacks . | . . . . Total Damage . | . . . . Kills . | . . . . Allies Corrupted . | . . . . Allies Melted . | . . . . Intel | -11 -10 -10 -9 ------- Run | Yrd Mat Min Mat Robot Analysis Total . | . . . . Derelict Logs Recovered . | . . . . Drone Launches . | . . . . Drone Recoveries . | . . . . Exploration | -11 -10 -10 -9 ------------- Run | Yrd Mat Min Mat Turns Passed 810 | 61 478 107 164 Spaces Moved 414 | 37 208 73 96 Core 46 | 5 . . 41 Treads 55 | . . . 55 Legs 313 | 32 208 73 . Wheels . | . . . . Hover . | . . . . Flight . | . . . . Fastest Speed 50 | 50 120 120 50 Average Speed 122 | 131 122 125 116 Slowest Speed 350 | 200 190 190 350 Overloaded Moves . | . . . . Propulsion Burnouts . | . . . . Robots Hopped . | . . . . Cave-ins Triggered . | . . . . Exploration Rate (%) 17 | 3 29 22 15 Regions Visited 3 Branch Regions 1 Pre-discovered Areas . | . . . . Known Exits Taken . | . . . . Unknown Exits Taken 3 | 1 1 1 . Scrap Searched . | . . . . Spaces Dug . | . . . . Terrain Destroyed . | . . . . Melee . | . . . . Projectile . | . . . . AOE . | . . . . Terrain Rammed . | . . . . Walls Destroyed . | . . . . Machines Disabled . | . . . . Actions | -11 -10 -10 -9 --------- Run | Yrd Mat Min Mat Total 603 | 47 343 82 131 Wait 86 | . 77 1 8 Move 411 | 36 207 72 96 Hop . | . . . . Pick Up 15 | 5 7 2 1 Fast Attach 8 | 5 2 . 1 Attach 9 | 1 2 1 5 Detach 1 | . . . 1 Swap 3 | . . 2 1 Drop 6 | . 1 1 4 Fire 61 | . 45 3 13 Melee . | . . . . Ram 1 | . . . 1 Kick 2 | . 2 . . Crush . | . . . . Escape Stasis . | . . . . Rewire . | . . . . Trap . | . . . . Miscellaneous . | . . . . Route ------- -11/Scrapyard -10/Materials -10/Mines -9/Materials History --------- Turn | Location | Event 18 | -11/Scrapyard | Discovered new exit (range 16) 62 | -11/Scrapyard | Entered Materials 305 | -10/Materials | Build established: Mutant 516 | -10/Materials | Discovered new exit (range 16) 540 | -10/Materials | Entered Mines 568 | -10/Mines | Met a Derelict bent on vengeance 625 | -10/Mines | Discovered new exit (range 16) 628 | -10/Mines | Assembled infested the area 633 | -10/Mines | Assisted by a Guerilla fighting off Assembled 642 | -10/Mines | Core integrity fell below 50% 647 | -10/Mines | Entered Materials 647 | -9/Materials | Evolved 2 slots: Propulsion x1, Weapon x1 787 | -9/Materials | Core integrity fell below 50% 807 | -9/Materials | Core integrity fell below 20% 811 | -9/Materials | Self-destructed Last Messages --------------- 00769_ Lgt. Treads destroyed. 00770_ K-01 Serf collects debris. 00772_ Ion Engine destroyed. 00774_ K-01 Serf collects debris. 00775_ S-10 Pest destroyed. 00777_ K-01 Serf collects debris. 00778_ Lgt. Treads destroyed. 00778_ Critical hit (Burn: +37). 00780_ K-01 Serf collects debris. 00782_ S-10 Pest suffers critical hit (Destroy). 00782_ S-10 Pest destroyed. 00783_ K-01 Serf collects debris. 00784_ Slammed into G-34 Mercenary. 00787_ Acquired 13 matter. 00788_ K-01 Serf collects debris. 00791_ Dropped Lrg. Storage Unit. 00792_ Lgt. Assault Rifle destroyed. 00794_ K-01 Serf collects debris. 00796_ Acquired 10 matter. 00797_ Acquired 20 matter. Map ----- +----------------------------------------------------+ | ?????????????????????????????????????????????????? | | ?????????????????????????????????????????????????? | | ?????????????????????????????????????????????????? | | ?????????????????????????????????????????????????? | | ?????????????????????????????????????????# ????? | | ?????????????????????????????????????????# ????? | | ?????????????????????????????????????????# ????? | | ??????????????????????????????#?/######### ????? | | ??????????????????????????#### "%" #???? | | ??????????????????????????? ^ " #???? | | ???????????????????????????? ^ +???? | | ???????????????????????????? ^ #???? | | ????????????????????????????? #???? | | ??????????????????????????????# """ #???? | | ?????????????????????????###### """ """ #???? | | ?????????????????????????? # """ Y" ##### | | ???????????????????????????? "+% """ # | | ??????????????????????????????# # | | ??????????????????????????????# # | | ????????????? ############### # ##### | | ????????????? # #???? | | ???????????? #! !#???? | | ???????????? ##! !##???? | | ???????????? #######????? | | ???????????? ######+### #??????????? | | ???????????????????????# @ # #??????????? | | ???????????????????????# """ # #??????????? | | ???????????????????????# """ # #??????????? | | ???????????????????????# """ # #??????????? | | ???????????????????????# """ # % #??####????? | | ???????????????????????# # #? ????? | | ???????????????????????# ! # #?""" "????? | | ???????????????????????#! ? ### %# """ ""???? | | ???????????????????????# ??????# # """ ""???? | | ???????????????????????# ??????# ### / """ ""???? | | ???????????????????????????????# #?# # | | ???????????????????????????????# #?# ############ | | ???????????????????????????????# #?# #?????? | | ?????????????????????????#######+#?# #?????? | | ?????????????????????????? # #?????? | | ???????????????????????????" """ # #?????? | | ???????????????????????????" """ + #?????? | | ???????????????????????????" """ # = #?????? | | ?????????????????????????? + ## [ #?????? | | ?????????????????????????#########?#+###* =+?????? | | ???????????????????????????????????????# = #?????? | | ???????????????????????????????????????# ####### | | ???????????????????????????????????????# # | | ???????????????????????????????????????# # | | ???????????????????????????????????????# # | +----------------------------------------------------+ Best States ------------- Heat Dissipation 28 Energy Generation 10 Energy Capacity 250 Matter Stores 257 Matter Capacity 300 Sight Range 16 Robot Scan Range 14 Terrain Scan Density 10 Evasion (%) 55 Recoil Reduction 2 Item Schematics ----------------- None Robot Schematics ------------------ None Fabricated ------------ Nothing Alien Tech Used ----------------- None Achievements -------------- None Challenges ------------ None Game ------ Seed ContainmentHoverShredder Manual? 0 Play Time 00:12:53 Cumulative 11.3 hours Start 2024.04.18 @ 17:57:39 End 2024.04.18 @ 18:13:19 Sessions 3 Manual Loads 0 Difficulty Rogue Special Mode None Game No. 17 Rogue 17 Adventurer 0 Explorer 0 Win Type - Total 0 Types 0/0/0/0/0/0/0/0/0 Lore% 18 Gallery% 18 Achievement% 21 Wizard Run 0 Options --------- Layout 0 ASCII 0 Keyboard 0 Movement Mouse Keybinds 0 Fullscreen 1 Font 18/SmallcapsGlow Map View 76x50 Zoom Use 4% Tactical HUD 1 Map Filters NONE Filters NONE Steam 1 RUN: dcc352b1-8b77-4535-bcde-c84d7cc72430